Cogmind - Beta 10.2 @@@ ROGUE MODE // 2021.12.19 @ 13:40:22 Player: Ayera Result: Destroyed by P-70 Sage with High-powered Shock Rifle Performance ------------- Evolutions (6) 3000 Regions Visited (16) 3200 Robots Destroyed (83) 415 Value Destroyed (3647) 3647 Prototype IDs (16) 320 Alien Tech Used (0) 0 Bonus (913) 913 TOTAL SCORE: 11495 Bonus ------- Follower Combat Kills 313 Aligned with FarCom 300 Met Data Miner 300 Cogmind --------- Core Integrity 0/1150 Matter 100/300 Energy 99/100 System Corruption 5% Temperature Cool (0) Movement Core (50) Location -4/Upper Caves Parts ------- > --- POWER (3) -------- (None) > --- PROPULSION (4) --- (None) > --- UTILITY (9) ------ Experimental Signal Interpreter > --- WEAPON (3) ------- (None) > --- INVENTORY (4) ---- Core Analyzer Heavy Phase Cannon Peak State ------------ > --- POWER ------------ Neutrino Core Neutrino Core > --- PROPULSION ------- Improved Treads Heavy Treads > --- UTILITY ---------- Advanced Heat Sink Large Storage Unit Recoil Nullifier Matter Filter Improved Medium Armor Plating Improved Focal Shield Improved Focal Shield Improved Dynamic Insulation System > --- WEAPON ----------- KE Penetrator Enhanced Gauss Cannon Enhanced Gauss Cannon > --- INVENTORY -------- Light Angular Momentum Engine Fission Core Fission Core Micro Fission Core Carbon-fiber Leg Flexi-carbon Leg Gauss Cannon Remote Datajack Improved Remote Datajack Phasing Sabre [Rating: 86] Favorites ----------- Power Deuterium Engine Engine Deuterium Engine Power Core Light Nuclear Core Propulsion Medium Treads Treads Medium Treads Leg Aluminum Leg Wheel Compact Wheel Hover Unit Improved Antigrav System Flight Unit Nuclear Pulse Array Utility High-capacity Storage Unit Device Transmission Jammer Storage High-capacity Storage Unit Processor Advanced Targeting Computer Protection Improved Medium Armor Plating Weapon Assault Rifle Energy Gun Advanced Beam Rifle Energy Cannon Particle Cannon Ballistic Gun Assault Rifle Ballistic Cannon Advanced Assault Cannon Launcher Rocket Launcher Special Weapon Mining Laser Slashing Weapon Makeshift Sword Special Melee Weapon Advanced Datajack Build | -11 -10 -10 -10 -9 -8 -7 -7 -7 -7 -6 -6 -5 -5 -5 -4 -4 ------- Run | Scr Mat Min Exi Min Mat Fac Low Low Dat Pro Fac Fac Ext Cet Fac Upp Slots Evolved 12 | . . . . . 4 2 . . . . 2 2 . . 2 . Power 2 | . . . . . . 1 . . . . . . . . 1 . Propulsion 2 | . . . . . 2 . . . . . . . . . . . Utility 7 | . . . . . 2 1 . . . . 2 1 . . 1 . Weapon 1 | . . . . . . . . . . . . 1 . . . . Parts Attached 169 | 6 4 1 1 2 16 10 3 5 . 11 43 17 39 5 6 . Power 23 | 1 . . . . 2 . 1 2 . . 7 3 4 3 . . Engine 9 | 1 . . . . 2 . . 1 . . 4 . . 1 . . Core 14 | . . . . . . . 1 1 . . 3 3 4 2 . . Reactor . | . . . . . . . . . . . . . . . . . Propulsion 42 | 2 2 . . 1 . 5 . 1 . 4 9 7 7 1 3 . Treads 15 | . . . . . . 5 . 1 . 1 2 3 2 . 1 . Leg 18 | 2 2 . . 1 . . . . . 3 4 . 5 1 . . Wheel 3 | . . . . . . . . . . . 3 . . . . . Hover 4 | . . . . . . . . . . . . 2 . . 2 . Flight 2 | . . . . . . . . . . . . 2 . . . . Utility 55 | 1 1 . 1 1 7 2 2 1 . 2 19 3 14 . 1 . Device 20 | . . . . 1 2 . . . . . 4 3 10 . . . Storage 6 | 1 1 . 1 . . . . . . . 3 . . . . . Processor 10 | . . . . . 2 . . . . 2 3 . 2 . 1 . Hackware . | . . . . . . . . . . . . . . . . . Protection 19 | . . . . . 3 2 2 1 . . 9 . 2 . . . Artifact . | . . . . . . . . . . . . . . . . . Weapon 49 | 2 1 1 . . 7 3 . 1 . 5 8 4 14 1 2 . Energy Gun 8 | 2 . . . . 3 1 . . . 1 . . . . 1 . Energy Cannon 1 | . . . . . . 1 . . . . . . . . . . Ballistic Gun 9 | . 1 . . . 1 . . 1 . . 1 1 4 . . . Ballistic Cannon 17 | . . . . . . 1 . . . . 5 2 9 . . . Launcher 3 | . . 1 . . . . . . . 1 . 1 . . . . Special Weapon 5 | . . . . . 3 . . . . 2 . . . . . . Impact Weapon . | . . . . . . . . . . . . . . . . . Slashing Weapon 5 | . . . . . . . . . . 1 2 . 1 1 . . Piercing Weapon . | . . . . . . . . . . . . . . . . . Special Melee Weapon 1 | . . . . . . . . . . . . . . . 1 . Unidentified Prototypes 8 | . . . . . 1 . . . . . 1 2 1 . 3 . Parts Lost 98 | . 2 . . . . 2 . 5 . 18 20 4 26 18 3 . Power 15 | . . . . . . . . 2 . 2 4 1 2 4 . . Propulsion 26 | . . . . . . 1 . 1 . 7 7 . 7 2 1 . Utility 30 | . . . . . . . . 1 . 3 6 3 9 8 . . Weapon 27 | . 2 . . . . 1 . 1 . 6 3 . 8 4 2 . Highest Loss Streak 18 | . 2 . . . . 2 . 4 . 16 7 2 10 18 3 . Average Slot Usage (%) 77 | . 79 82 85 89 80 86 99 97 92 69 66 71 76 55 12 7 Engine 6 | . 14 14 14 14 9 7 7 6 7 4 4 . . . . . Core 3 | . . . . . . . 6 6 7 4 3 5 10 5 . . Treads 9 | . . . . . . 20 30 29 23 16 3 10 6 6 . 2 Leg 9 | . 28 28 28 28 18 4 . . . . 2 . 4 . . . Device 9 | . . . . 3 21 7 7 7 7 5 9 15 22 23 . . Storage 7 | . 14 14 14 14 9 7 7 7 7 5 4 5 5 2 . . Processor 5 | . . . . . 2 7 7 7 7 7 14 11 6 . 3 5 Protection 6 | . . . . . 2 15 15 14 15 10 7 6 1 3 . . Energy Gun 2 | . 17 . . . 6 4 7 3 . . . . . . 1 . Ballistic Gun 5 | . 4 14 14 14 8 . . 2 7 4 . 5 3 4 . . Ballistic Cannon 4 | . . . . . . 6 7 7 7 4 6 6 11 6 . . Launcher 2 | . . 11 14 14 1 . . . . . . . . . . . Naked Turns 54 | . . . . . . . . . . . . . . 15 39 . Heaviest Build 86 | 10 22 25 41 43 52 63 70 72 68 68 44 58 86 86 5 . Greatest Support 118 | 20 20 20 20 20 20 112 112 112 84 107 48 118 118 93 35 35 Greatest Overweight (x) 6 | 2 1 1 2 2 2 6 . . . 2 5 2 1 1 . . Average Overweight (x) . | . . 1 1 2 2 . . . . . . 1 . . . . Largest Inventory Capacity 18 | 6 12 10 18 12 12 12 12 12 12 12 10 10 10 10 4 4 Average Capacity 9 | 5 8 10 11 12 12 12 12 12 12 9 6 10 10 6 4 4 Most Carried 12 | 2 3 3 3 8 12 12 12 12 9 9 6 10 10 10 4 2 Average Carried 6 | 1 2 2 3 5 11 11 12 11 9 7 2 4 8 4 2 2 Final Capacity 12 | 6 10 10 12 12 12 12 12 12 12 4 10 10 10 4 4 4 Final Carried 12 | 2 2 3 3 8 12 12 12 9 9 2 3 10 10 . 2 2 Class Distribution -------------------- 80% | Mutant 7% | Infiltrator-Mutant 3% | Skirmisher 3% | Scavenger-Mutant Dominant Class ---------------- Mutant | -10/Materials Mutant | -10/Mines Mutant | -10/Exiles Mutant | -9/Mines Mutant | -8/Materials Mutant | -7/Factory Mutant | -7/Lower Caves Mutant | -7/Lower Caves Mutant | -7/Data Miner Mutant | -6/Proximity Caves Mutant | -6/Factory Mutant | -5/Factory Skirmisher | -5/Extension Tank | -5/Cetus Mutant | -4/Factory Mutant | -4/Upper Caves Resources | -11 -10 -10 -10 -9 -8 -7 -7 -7 -7 -6 -6 -5 -5 -5 -4 -4 ----------- Run | Scr Mat Min Exi Min Mat Fac Low Low Dat Pro Fac Fac Ext Cet Fac Upp Matter Collected 3552 | 260 34 16 . 115 100 195 250 153 . 300 756 378 945 50 . . Remotely . | . . . . . . . . . . . . . . . . . Salvage Created 2963 | . 125 . . 100 116 195 103 196 . 289 875 390 500 74 . . Parts 115 | . 6 . . 4 4 10 6 8 . 14 32 16 13 2 . . Haulers Intercepted . | . . . . . . . . . . . . . . . . . Recyclers Shooed . | . . . . . . . . . . . . . . . . . Parts Field Recycled . | . . . . . . . . . . . . . . . . . Retrieved Matter . | . . . . . . . . . . . . . . . . . Parts Self-Destructed 30 | . . . . . . . 5 7 . 18 . . . . . . Prevented . | . . . . . . . . . . . . . . . . . Kills | -11 -10 -10 -10 -9 -8 -7 -7 -7 -7 -6 -6 -5 -5 -5 -4 -4 ------- Run | Scr Mat Min Exi Min Mat Fac Low Low Dat Pro Fac Fac Ext Cet Fac Upp Combat Hostiles Destroyed 68 | . 4 . . 5 2 5 3 9 . 7 17 7 7 2 . . Melee 8 | . 1 . . . . . . . . 1 6 . . . . . Guns 19 | . 3 . . 1 2 2 1 4 . 3 . 1 2 . . . Cannons 30 | . . . . . . 3 2 5 . 1 7 6 5 1 . . AOE 10 | . . . . 4 . . . . . 2 4 . . . . . Classes Destroyed 12 | . 2 . . 1 2 3 . 1 . . 1 . 2 . . . Builder 1 | . . . . . . . . . . . . . 1 . . . Recycler 6 | . . . . 1 . . . . . . 2 1 2 . . . Operator 2 | . . . . . . 1 . . . . 1 . . . . . Watcher 6 | . . . . . 1 . . . . . 2 1 2 . . . Swarmer 18 | . 2 . . 5 . . . 7 . 2 2 . . . . . Grunt 22 | . 2 . . . 1 . 3 1 . 2 8 3 2 . . . Brawler 2 | . . . . . . . . . . . 2 . . . . . Duelist 1 | . . . . . . . . 1 . . . . . . . . Sentry 9 | . . . . . . 2 . . . 2 2 . 3 . . . Hunter 2 | . . . . . 1 1 . . . . . . . . . . Programmer 11 | . . . . . . 2 . . . 1 3 4 1 . . . Behemoth 1 | . . . . . . . . . . . . . 1 . . . Cetus Guard 2 | . . . . . . . . . . . . . . 2 . . Best Kill Streak 5 | . 2 . . 3 1 2 1 4 . 2 5 4 3 1 . . Combat Bots Only 4 | . 2 . . 3 1 1 1 4 . 2 4 3 2 1 . . Max Kills in Single Turn 5 | . 1 . . 2 1 1 1 1 . 2 5 1 2 1 . . Gunslinging . | . . . . . . . . . . . . . . . . . Exploded 4 | . . . . 2 . . . . . 2 4 . . . . . Melee 1 | . 1 . . . . . . . . 1 1 . . . . . Uniques/NPCs Destroyed . | . . . . . . . . . . . . . . . . . Combat | -11 -10 -10 -10 -9 -8 -7 -7 -7 -7 -6 -6 -5 -5 -5 -4 -4 -------- Run | Scr Mat Min Exi Min Mat Fac Low Low Dat Pro Fac Fac Ext Cet Fac Upp Damage Taken 15076 | 2 181 . . 168 427 638 204 1018 . 1838 2737 1141 3429 1966 735 592 Core 3126 | . 26 . . 28 86 35 19 94 . 523 409 128 353 270 563 592 Absorbed by Shields 52 | . . . . . . . . . . . 52 . . . . . Core Remaining (%) 56 | 100 . . . 78 84 . . . . 4 51 . . 24 . . Volleys Fired 310 | . 13 . . 7 31 22 11 28 . 21 53 30 72 16 6 . Largest 3 | . 2 . . 2 2 2 2 2 . 2 2 3 3 3 1 . Hottest 171 | . 90 . . 53 120 116 109 109 . 100 96 131 171 147 88 . Shots Fired 552 | . 21 . . 14 46 44 18 51 . 31 76 69 138 38 6 . Gun 205 | . 21 . . 7 24 18 7 23 . 19 1 30 34 15 6 . Cannon 314 | . . . . . . 26 11 28 . 8 75 39 104 23 . . Launcher 10 | . . . . 7 2 . . . . 1 . . . . . . Special 23 | . . . . . 20 . . . . 3 . . . . . . Kinetic 452 | . 2 . . 7 15 22 11 49 . 25 76 69 138 38 . . Thermal 89 | . 19 . . . 29 22 7 2 . 4 . . . . 6 . Explosive 10 | . . . . 7 2 . . . . 1 . . . . . . Electromagnetic . | . . . . . . . . . . . . . . . . . Robot Hit Streak 17 | . 6 . . 3 9 12 17 9 . 12 9 9 11 14 2 . Robot Miss Streak 9 | . 6 . . 9 3 1 1 2 . 2 5 7 3 5 2 . Penetration Max 1 | . . . . . . . . . . . . . . 1 . . Secondary Targets 2 | . 2 . . . . . . . . . . . . . . . Max Gunslinging Chain 1 | . 1 . . . . . . . . . . . . . . . Shots Hit Robots 378 | . 12 . . 4 20 36 13 38 . 26 71 48 77 26 7 . Core Hits 204 | . 10 . . 9 8 12 6 11 . 24 42 36 27 9 8 2 Critical Hits 28 | . . . . . . 1 1 1 . 1 1 3 16 4 . . Critical Kills 5 | . . . . . . . . . . 1 1 1 2 . . . Critical Parts Destroyed 17 | . . . . . . 1 1 1 . . . 2 8 4 . . Melee Attacks 39 | . . . . . . . . . . 2 25 . 6 2 4 . Impact . | . . . . . . . . . . . . . . . . . Slashing 35 | . . . . . . . . . . 2 25 . 6 2 . . Piercing . | . . . . . . . . . . . . . . . . . Sneak Attacks 5 | . . . . . . . . . . . 2 . . . 3 . Combat Hostiles 2 | . . . . . . . . . . . 2 . . . . . Follow-up Attacks . | . . . . . . . . . . . . . . . . . Damage Inflicted 11150 | 4 164 . . 348 291 837 261 910 . 797 3096 1150 2084 1019 176 13 Guns 2941 | . 145 . . 37 204 335 100 384 . 351 . 399 503 371 112 . Cannons 5806 | . . . . . . 502 161 526 . 146 1560 751 1569 591 . . Explosions 1244 | . . . . 293 63 . . . . 209 679 . . . . . Melee 885 | . . . . . . . . . . . 828 . . 57 . . Ramming 202 | 4 19 . . 18 . . . . . 43 29 . 12 . 64 13 Kinetic 7826 | . . . . 37 93 441 161 870 . 480 1560 1150 2072 962 . . Thermal 993 | . 145 . . . 135 396 100 40 . 65 . . . . 112 . Explosive 1244 | . . . . 293 63 . . . . 209 679 . . . . . Electromagnetic . | . . . . . . . . . . . . . . . . . Impact . | . . . . . . . . . . . . . . . . . Slashing 885 | . . . . . . . . . . . 828 . . 57 . . Piercing . | . . . . . . . . . . . . . . . . . Highest Corruption 45 | . . . . . . . . . . 3 5 9 41 45 2 5 Average Corruption 11 | . . . . . . . . . . 1 4 7 22 41 2 2 Corruption Purged . | . . . . . . . . . . . . . . . . . Effects 201 | . . . . . . . . . . 11 24 8 113 39 . 6 Message Errors 32 | . . . . . . . . . . 2 4 1 20 2 . 3 Matter Fused 30 | . . . . . . . . . . 3 8 3 14 2 . . Heat Flow Errors 13 | . . . . . . . . . . 1 3 . 7 2 . . Energy Discharges 16 | . . . . . . . . . . . 4 1 6 2 . 3 Parts Rejected 1 | . . . . . . . . . . . . . . 1 . . Data Loss (minor) 19 | . . . . . . . . . . 4 3 1 11 . . . Data Loss (major) 3 | . . . . . . . . . . . . . 3 . . . Misfires 7 | . . . . . . . . . . . 1 . 6 . . . Misdirections 23 | . . . . . . . . . . . . . 19 4 . . Targeting Errors 53 | . . . . . . . . . . 1 1 2 24 25 . . Weapon Failures 4 | . . . . . . . . . . . . . 3 1 . . Overload Shots . | . . . . . . . . . . . . . . . . . Overflow Damage 326 | . . . . 16 . . . 4 . . 278 . . 28 . . Projectiles 119 | . . . . . . . . 4 . . 87 . . 28 . . Explosions 179 | . . . . 16 . . . . . . 163 . . . . . Melee 28 | . . . . . . . . . . . 28 . . . . . Knockbacks 59 | . . . . . . 2 1 13 . 1 16 16 9 1 . . Impact 1 | . . . . . . . . . . . 1 . . . . . Kinetic 53 | . . . . . . 2 1 12 . 1 12 16 8 1 . . Secondary 5 | . . . . . . . . 1 . . 3 . 1 . . . Self-Inflicted Damage 572 | 2 6 . . 124 . . . . . 66 333 . 7 . 29 5 Shots 8 | . . . . 4 . . . . . 1 3 . . . . . Rammed 49 | 1 4 . . 1 . . . . . 13 9 . . . 15 6 Targets Rammed 56 | 1 6 . . 4 . . . . . 13 10 . 1 . 15 6 Kicked 7 | . 2 . . 3 . . . . . . 1 . 1 . . . Crushed . | . . . . . . . . . . . . . . . . . Highest Temperature 384 | . 228 . . . 282 258 384 317 . 207 217 309 370 275 30 . Average Temperature 96 | . 84 . . . 69 96 143 112 . 35 64 75 124 144 14 . Received Heat Transfer 2762 | . 48 . . . 180 108 108 234 . 543 584 180 234 468 57 18 Effects 10 | . . . . . . . 1 . . . . . 8 1 . . Shutdowns 3 | . . . . . . . 1 . . . . . 2 . . . Energy Bleed 1 | . . . . . . . . . . . . . . 1 . . Interference 6 | . . . . . . . . . . . . . 6 . . . Siege Activations . | . . . . . . . . . . . . . . . . . Robots Corrupted . | . . . . . . . . . . . . . . . . . Combat Hostiles . | . . . . . . . . . . . . . . . . . Parts Fried . | . . . . . . . . . . . . . . . . . Impact Corruptions . | . . . . . . . . . . . . . . . . . Robots Melted . | . . . . . . . . . . . . . . . . . Combat Hostiles . | . . . . . . . . . . . . . . . . . Parts Melted 2 | . 1 . . . . 1 . . . . . . . . . . Heat Transferred 2028 | . 384 . . . 382 666 185 74 . 137 . . . . 200 . Parts Sabotaged . | . . . . . . . . . . . . . . . . . Parts Stolen . | . . . . . . . . . . . . . . . . . Parts Stripped . | . . . . . . . . . . . . . . . . . Power Chain Reactions . | . . . . . . . . . . . . . . . . . Missiles Intercepted . | . . . . . . . . . . . . . . . . . Alert | -11 -10 -10 -10 -9 -8 -7 -7 -7 -7 -6 -6 -5 -5 -5 -4 -4 ------- Run | Scr Mat Min Exi Min Mat Fac Low Low Dat Pro Fac Fac Ext Cet Fac Upp Peak Influence 233 | . 100 39 . 233 53 142 . . . . 226 104 143 28 79 . Initial 58 | . . 39 . . . . . . . . 58 54 50 28 . . Average 43 | . 48 13 . 52 13 23 . . . . 84 46 59 9 13 . Maximum Alert Level 1 | . . . . 1 . . . . . . 1 . . . . . Low Security (%) 97 | 100 100 100 . 88 100 100 . . . . 90 100 100 100 100 . Level 1 2 | . . . . 11 . . . . . . 9 . . . . . Level 2 . | . . . . . . . . . . . . . . . . . Level 3 . | . . . . . . . . . . . . . . . . . Level 4 . | . . . . . . . . . . . . . . . . . Level 5 . | . . . . . . . . . . . . . . . . . High Security . | . . . . . . . . . . . . . . . . . Max Security . | . . . . . . . . . . . . . . . . . Squads Dispatched 19 | . 2 . . . 2 3 . . . . 5 2 1 . 4 . Investigation 3 | . 1 . . . 1 . . . . . . . . . 1 . Extermination 8 | . . . . . . 2 . . . . 3 2 . . 1 . Reinforcement 6 | . 1 . . . 1 1 . . . . . . 1 . 2 . Assault 1 | . . . . . . . . . . . 1 . . . . . Garrison 1 | . . . . . . . . . . . 1 . . . . . Intercept . | . . . . . . . . . . . . . . . . . Construction Impeded 1 | . . . . . . . . . . . . . . . 1 . Haulers Reinforced . | . . . . . . . . . . . . . . . . . Stealth | -11 -10 -10 -10 -9 -8 -7 -7 -7 -7 -6 -6 -5 -5 -5 -4 -4 --------- Run | Scr Mat Min Exi Min Mat Fac Low Low Dat Pro Fac Fac Ext Cet Fac Upp Distress Signals 7 | . 1 . . . . 1 . . . . . . 2 1 2 . Communications Jammed 8 | . . . . . . 6 . . . . 1 1 . . . . Distress Signals 8 | . . . . . . 6 . . . . 1 1 . . . . Times Spotted 148 | . 12 . . 5 5 8 5 12 . 21 27 8 18 8 9 10 Peak Tracking Total 9 | . 3 . . 3 2 2 3 4 . 8 4 3 3 6 5 9 Tactical Retreats 24 | . . . . . 2 . 1 2 . 8 6 . 3 . 1 1 Traps | -11 -10 -10 -10 -9 -8 -7 -7 -7 -7 -6 -6 -5 -5 -5 -4 -4 ------- Run | Scr Mat Min Exi Min Mat Fac Low Low Dat Pro Fac Fac Ext Cet Fac Upp Traps Triggered 7 | . 1 . . . 1 . . . . . 4 . 1 . . . Indirectly . | . . . . . . . . . . . . . . . . . Trap Hack Attempts . | . . . . . . . . . . . . . . . . . Triggered . | . . . . . . . . . . . . . . . . . Disarmed . | . . . . . . . . . . . . . . . . . Reprogrammed . | . . . . . . . . . . . . . . . . . Reused . | . . . . . . . . . . . . . . . . . Traps Extracted . | . . . . . . . . . . . . . . . . . Installed . | . . . . . . . . . . . . . . . . . Triggered 1 | . . . . . . . . . . . . . . . . 1 Machines | -11 -10 -10 -10 -9 -8 -7 -7 -7 -7 -6 -6 -5 -5 -5 -4 -4 ---------- Run | Scr Mat Min Exi Min Mat Fac Low Low Dat Pro Fac Fac Ext Cet Fac Upp Machines Disabled 18 | . . . . 7 . . . . . 3 5 . 2 1 . . Max in Single Turn 6 | . . . . 6 . . . . . 3 2 . 1 1 . . Garrison Access 1 | . . . . . . . . . . . 1 . . . . . Machines Sabotaged . | . . . . . . . . . . . . . . . . . Garrisons Compromised . | . . . . . . . . . . . . . . . . . Overloaded Fab Kills . | . . . . . . . . . . . . . . . . . Fab Network Shutdowns . | . . . . . . . . . . . . . . . . . Hacking | -11 -10 -10 -10 -9 -8 -7 -7 -7 -7 -6 -6 -5 -5 -5 -4 -4 --------- Run | Scr Mat Min Exi Min Mat Fac Low Low Dat Pro Fac Fac Ext Cet Fac Upp Machines Accessed 14 | . 1 . 2 1 2 1 . . 4 . 2 . . . 1 . Terminals 5 | . 1 . . 1 2 . . . . . 1 . . . . . Fabricators . | . . . . . . . . . . . . . . . . . Repair Stations 1 | . . . . . . 1 . . . . . . . . . . Recycling Units 1 | . . . . . . . . . . . . . . . 1 . Scanalyzers . | . . . . . . . . . . . . . . . . . Garrison Access 1 | . . . . . . . . . . . 1 . . . . . Total Hacks 44 | . 3 . 2 3 3 1 . . 25 . 3 . . . 4 . Successful 39 | . 3 . 2 2 1 . . . 25 . 2 . . . 4 . Failed 5 | . . . . 1 2 1 . . . . 1 . . . . . Catastrophic 1 | . . . . . 1 . . . . . . . . . . . Database Lockouts . | . . . . . . . . . . . . . . . . . Manual 2 | . . . . . . . . . 2 . . . . . . . Terminals 10 | . 3 . . 3 3 . . . . . 1 . . . . . Fabricators . | . . . . . . . . . . . . . . . . . Repair Stations 1 | . . . . . . 1 . . . . . . . . . . Recycling Units 4 | . . . . . . . . . . . . . . . 4 . Scanalyzers . | . . . . . . . . . . . . . . . . . Garrison Access 2 | . . . . . . . . . . . 2 . . . . . Terminal Hacks 34 | . 3 . 2 2 1 . . . 25 . 1 . . . . . Record 13 | . . . 2 . . . . . 11 . . . . . . . Part Schematic 4 | . . . . . . . . . 4 . . . . . . . Robot Schematic 7 | . . . . . . . . . 7 . . . . . . . Prototype ID Bank 3 | . . . . . . . . . 3 . . . . . . . Terminal Index 1 | . . . . . 1 . . . . . . . . . . . Alert Level 1 | . . . . . . . . . . . 1 . . . . . Dispatch Records 2 | . 1 . . 1 . . . . . . . . . . . . Investigation Status 1 | . 1 . . . . . . . . . . . . . . . Recall Investigation 1 | . 1 . . . . . . . . . . . . . . . Zone Layout 1 | . . . . 1 . . . . . . . . . . . . Fabricator Hacks . | . . . . . . . . . . . . . . . . . Repair Station Hacks . | . . . . . . . . . . . . . . . . . Recycling Unit Hacks 4 | . . . . . . . . . . . . . . . 4 . Recycle Component 1 | . . . . . . . . . . . . . . . 1 . Process 1 | . . . . . . . . . . . . . . . 1 . Retrieve Matter 2 | . . . . . . . . . . . . . . . 2 . Scanalyzer . | . . . . . . . . . . . . . . . . . Garrison Access Hacks 1 | . . . . . . . . . . . 1 . . . . . Unlock Access 1 | . . . . . . . . . . . 1 . . . . . Unauthorized Hacks . | . . . . . . . . . . . . . . . . . Terminals . | . . . . . . . . . . . . . . . . . Fabricators . | . . . . . . . . . . . . . . . . . Repair Stations . | . . . . . . . . . . . . . . . . . Recycling Units . | . . . . . . . . . . . . . . . . . Scanalyzers . | . . . . . . . . . . . . . . . . . Garrison Access . | . . . . . . . . . . . . . . . . . Data Cores Recovered . | . . . . . . . . . . . . . . . . . Used . | . . . . . . . . . . . . . . . . . Hacking Detections 7 | . 1 . . 1 1 1 . . . . 2 . . . 1 . Full Trace Events 2 | . . . . . 1 . . . . . . . . . 1 . Feedback Events . | . . . . . . . . . . . . . . . . . Feedback Blocked . | . . . . . . . . . . . . . . . . . Robot Schematics Acquired 7 | . . . . . . . . . 7 . . . . . . . Robots Built . | . . . . . . . . . . . . . . . . . Matter . | . . . . . . . . . . . . . . . . . Time . | . . . . . . . . . . . . . . . . . Total Robot Build Rating . | . . . . . . . . . . . . . . . . . Part Schematics Acquired 4 | . . . . . . . . . 4 . . . . . . . Parts Built . | . . . . . . . . . . . . . . . . . Matter . | . . . . . . . . . . . . . . . . . Time . | . . . . . . . . . . . . . . . . . Total Part Build Rating . | . . . . . . . . . . . . . . . . . Parts Repaired . | . . . . . . . . . . . . . . . . . Time . | . . . . . . . . . . . . . . . . . Parts Recycled 1 | . . . . . . . . . . . . . . . 1 . Recycled Matter 29 | . . . . . . . . . . . . . . . 29 . Retrieved Matter 29 | . . . . . . . . . . . . . . . 29 . Retrieved Components . | . . . . . . . . . . . . . . . . . Parts Scanalyzed . | . . . . . . . . . . . . . . . . . Part Schematics Acquired . | . . . . . . . . . . . . . . . . . Parts Damaged . | . . . . . . . . . . . . . . . . . Bothacking | -11 -10 -10 -10 -9 -8 -7 -7 -7 -7 -6 -6 -5 -5 -5 -4 -4 ------------ Run | Scr Mat Min Exi Min Mat Fac Low Low Dat Pro Fac Fac Ext Cet Fac Upp Used RIF Installer . | . . . . . . . . . . . . . . . . . Robots Hacked 5 | . . . . . . . . . . 1 . . . . 4 . Non-combat 4 | . . . . . . . . . . . . . . . 4 . Combat 1 | . . . . . . . . . . 1 . . . . . . Robot Hacks Applied 5 | . . . . . . . . . . 1 . . . . 4 . parse_system 2 | . . . . . . . . . . 1 . . . . 1 . no_distress 2 | . . . . . . . . . . . . . . . 2 . find_chute 1 | . . . . . . . . . . . . . . . 1 . Relay Couplers Released 2 | . . . . . . . . . . . 2 . . . . . Machine Destruction 2 | . . . . . . . . . . . 2 . . . . . Robots Rewired 8 | . . . . . . . . . . . . . 7 . 1 . Allies Hacked . | . . . . . . . . . . . . . . . . . Hacks Repelled . | . . . . . . . . . . . . . . . . . Allies | -11 -10 -10 -10 -9 -8 -7 -7 -7 -7 -6 -6 -5 -5 -5 -4 -4 -------- Run | Scr Mat Min Exi Min Mat Fac Low Low Dat Pro Fac Fac Ext Cet Fac Upp Total Allies 18 | . . 3 . 1 . . . . . 1 . . 12 . 1 . Largest Group 6 | . . 3 3 3 1 . . . . 1 . . 6 6 1 . Highest-Rated Group 136 | . . 40 40 40 31 . . . . 94 . . 136 136 49 . Highest-Rated Ally 94 | . . 16 16 31 31 . . . . 94 . . 37 31 49 . Total Orders . | . . . . . . . . . . . . . . . . . Ally Attacks 81 | . . . . 7 . . . . . 13 . . 53 3 5 . Total Damage 1678 | . . . . 42 . . . . . 528 . . 857 67 184 . Kills 12 | . . . . 2 . . . . . 1 . . 9 . . . Allies Corrupted . | . . . . . . . . . . . . . . . . . Allies Melted . | . . . . . . . . . . . . . . . . . Intel | -11 -10 -10 -10 -9 -8 -7 -7 -7 -7 -6 -6 -5 -5 -5 -4 -4 ------- Run | Scr Mat Min Exi Min Mat Fac Low Low Dat Pro Fac Fac Ext Cet Fac Upp Robot Analysis Total . | . . . . . . . . . . . . . . . . . Derelict Logs Recovered 8 | . . 2 . 1 . . 2 . . 1 . . . . . 2 Drone Launches . | . . . . . . . . . . . . . . . . . Drone Recoveries . | . . . . . . . . . . . . . . . . . Exploration | -11 -10 -10 -10 -9 -8 -7 -7 -7 -7 -6 -6 -5 -5 -5 -4 -4 ------------- Run | Scr Mat Min Exi Min Mat Fac Low Low Dat Pro Fac Fac Ext Cet Fac Upp Turns Passed 16288 | 51 736 1114 1004 974 1635 1274 1392 788 250 1227 2200 1137 1645 145 420 296 Spaces Moved 9252 | 36 320 735 578 507 605 635 789 418 157 1123 1257 489 746 67 443 347 Core 1242 | 7 . . . . . . . . . 622 136 . . 37 191 249 Treads 3830 | . . . . . . 480 789 418 157 488 424 359 588 25 4 98 Legs 3344 | 29 320 735 578 507 605 155 . . . 13 239 . 158 5 . . Wheels 458 | . . . . . . . . . . . 458 . . . . . Hover 377 | . . . . . . . . . . . . 129 . . 248 . Flight 1 | . . . . . . . . . . . . 1 . . . . Fastest Speed 40 | 50 120 150 150 180 180 160 160 160 160 50 50 163 120 50 40 50 Average Speed 145 | 110 134 150 172 180 180 173 160 160 160 99 139 189 157 100 56 81 Slowest Speed 300 | 150 150 150 180 180 180 300 160 160 160 200 300 240 180 160 160 160 Overloaded Moves . | . . . . . . . . . . . . . . . . . Propulsion Burnouts . | . . . . . . . . . . . . . . . . . Robots Hopped . | . . . . . . . . . . . . . . . . . Cave-ins Triggered 6 | . . . . . . . . . . . . . 6 . . . Exploration Rate (%) 50 | 3 31 99 92 90 36 13 88 61 75 95 34 11 63 22 13 40 Regions Visited 16 Branch Regions 10 Pre-discovered Areas 5 | . . 1 1 . . . 1 . 1 . . . . . . 1 Known Exits Taken 2 | . . . . . . . . . . . 1 1 . . . . Unknown Exits Taken 14 | 1 1 1 1 1 1 1 1 1 1 1 . . 1 1 1 . Scrap Searched 8 | . . 1 . 2 . . 3 . . 2 . . . . . . Spaces Dug 32 | . . . . . 16 . . . . 2 . . 14 . . . Terrain Destroyed 305 | . . . . 95 34 2 3 6 . 7 93 5 50 9 1 . Melee 8 | . . . . . . . . . . 2 . . 6 . . . Projectile 93 | . . . . . 16 2 3 6 . 2 5 5 44 9 1 . AOE 204 | . . . . 95 18 . . . . 3 88 . . . . . Terrain Rammed 1 | . . . . . . . . . . . . . 1 . . . Walls Destroyed . | . . . . . . . . . . . . . . . . . Machines Disabled . | . . . . . . . . . . . . . . . . . Actions | -11 -10 -10 -10 -9 -8 -7 -7 -7 -7 -6 -6 -5 -5 -5 -4 -4 --------- Run | Scr Mat Min Exi Min Mat Fac Low Low Dat Pro Fac Fac Ext Cet Fac Upp Total 11473 | 44 602 746 587 551 1068 766 901 485 156 1197 1578 637 1078 108 607 362 Wait 1477 | . 259 10 8 28 405 90 97 35 . 24 173 89 134 18 100 7 Move 9236 | 35 319 734 577 506 604 634 788 417 156 1122 1256 488 745 66 442 347 Hop . | . . . . . . . . . . . . . . . . . Pick Up 46 | 2 . 1 . 4 5 4 . . . 1 10 5 8 . 6 . Fast Attach 102 | 6 1 1 1 1 7 6 1 2 . 3 32 15 21 1 4 . Attach 39 | . 1 . . . . 2 . 3 . 8 8 1 10 4 2 . Detach 4 | . . . . . . . . . . . 1 2 1 . . . Swap 28 | . 2 . . 1 9 2 2 . . . 3 1 8 . . . Drop 41 | . 1 . 1 . 7 6 2 . . 2 7 6 5 1 2 1 Fire 310 | . 13 . . 7 31 22 11 28 . 21 53 30 72 16 6 . Melee 39 | . . . . . . . . . . 2 25 . 6 2 4 . Ram 42 | . . . . . . . . . . 12 8 . 1 . 15 6 Kick 13 | 1 6 . . 4 . . . . . . 1 . 1 . . . Crush 2 | . . . . . . . . . . 1 1 . . . . . Escape Stasis . | . . . . . . . . . . . . . . . . . Rewire 94 | . . . . . . . . . . 1 . . 66 . 26 1 Trap . | . . . . . . . . . . . . . . . . . Miscellaneous . | . . . . . . . . . . . . . . . . . Route ------- -11/Scrapyard -10/Materials -10/Mines (discovered 3 exits: [*Mat x2] / *Exi) -10/Exiles (discovered 2 exits: *Min x2) -9/Mines (discovered 2 exits: *Mat x2) -8/Materials (discovered 2 exits: *Fac / Sto) -7/Factory -7/Lower Caves -7/Lower Caves (discovered 2 exits: *Fac / *Dat) -7/Data Miner -6/Proximity Caves -6/Factory (discovered 4 exits: *Fac x2 / [*Low] / Gar) -5/Factory -5/Extension (discovered 2 exits: *Fac / [*Cet]) -5/Cetus -4/Factory -4/Upper Caves History --------- Turn | Location | Event 31 | -11/Scrapyard | Discovered new exit (range 16) 52 | -11/Scrapyard | Entered Materials 301 | -10/Materials | Build established: Mutant 314 | -10/Materials | Discovered new exit (range 8) 788 | -10/Materials | Entered Mines 1007 | -10/Mines | Received a Rocket Launcher from a helpful Derelict 1072 | -10/Mines | A weapon hastily lodged in a ceiling crevice suddenly fell to the ground 1087 | -10/Mines | Assisted by bots powering up and referring to "LRC-V3" 1201 | -10/Mines | Deemed a non-threat by the Exiles lab entrance 1202 | -10/Mines | Discovered new exit (range 5) 1477 | -10/Mines | Learned location of Storage (-8) 1533 | -10/Mines | Discovered new exit (range 5) 1579 | -10/Mines | Discovered new exit (range 10) 1902 | -10/Mines | Entered Exiles 1902 | -10/Exiles | Accompanied by 3 allies 1930 | -10/Exiles | Discovered new exit (range 15) 1957 | -10/Exiles | Met 8R-AWN 1988 | -10/Exiles | Met EX-HEX 2053 | -10/Exiles | Met EX-DEC 2182 | -10/Exiles | Discovered new exit (range 12) 2304 | -10/Exiles | Visited The Gauntlet 2537 | -10/Exiles | Learned location of Zion (-6) 2577 | -10/Exiles | Met EX-BIN 2602 | -10/Exiles | Aligned with FarCom system 2604 | -10/Exiles | Given EX-Vault access code 2906 | -10/Exiles | Entered Mines 2906 | -9/Mines | Accompanied by 3 allies 3208 | -9/Mines | Learned Materials stockpile data 3475 | -9/Mines | Discovered new exit (range 14) 3626 | -9/Mines | Discovered new exit (range 14) 3703 | -9/Mines | Received a Mining Laser from a helpful Derelict 3880 | -9/Mines | Entered Materials 3880 | -8/Materials | Accompanied by 1 ally 3880 | -8/Materials | Evolved 4 slots: Propulsion x2, Utility x2 3881 | -8/Materials | Identified exit to Storage 5510 | -8/Materials | Discovered new exit (range 4) 5515 | -8/Materials | Entered Factory 5515 | -7/Factory | Evolved 2 slots: Power x1, Utility x1 6265 | -7/Factory | Discovered new exit (range 14) 6789 | -7/Factory | Entered Lower Caves 6805 | -7/Lower Caves | Learned location of 1 exit from Factory 7251 | -7/Lower Caves | Encountered a Warlord checkpoint 7633 | -7/Lower Caves | Discovered new exit (range 6) 8181 | -7/Lower Caves | Entered another Lower Caves area 8181 | -7/Lower Caves | Discovered new exit (range 15) 8935 | -7/Lower Caves | Lost 4 parts (2p1n1u) 8959 | -7/Lower Caves | Discovered new exit (range 6) 8969 | -7/Lower Caves | Entered Data Miner 8969 | -7/Data Miner | Discovered new exit (range 6) 9000 | -7/Data Miner | Met Data Miner 9048 | -7/Data Miner | Learned location of Section 7 (-2) 9048 | -7/Data Miner | Acquired the access code to Warlord's prototype stash 9078 | -7/Data Miner | Received God Mode back door access code from Data Miner 9219 | -7/Data Miner | Entered Proximity Caves 9338 | -6/Proximity Caves | Escorted by Enhanced Grunt 9368 | -6/Proximity Caves | Attracted the attention of an 0b10 checkpoint 9458 | -6/Proximity Caves | Acquired the password to a Derelict Tinkerer's latest research 9583 | -6/Proximity Caves | Spotted B-75 Beast 9658 | -6/Proximity Caves | Caught by Unaware searching for contraband prototypes 9997 | -6/Proximity Caves | Attracted the attention of an 0b10 base 10112 | -6/Proximity Caves | Core integrity fell below 50% 10137 | -6/Proximity Caves | Core integrity fell below 20% 10159 | -6/Proximity Caves | Lost 16 parts (2p7n2u5w) 10256 | -6/Proximity Caves | Caught by Unaware searching for contraband prototypes 10439 | -6/Proximity Caves | Discovered new exit (range 15) 10446 | -6/Proximity Caves | Entered Factory 10446 | -6/Factory | Evolved 2 slots: Utility x2 10447 | -6/Factory | Identified exit to Factory 11099 | -6/Factory | Lost 6 parts (3n3u) 11200 | -6/Factory | Discovered exit to Factory (range 11) 11330 | -6/Factory | Lost 3 parts (2n1u) 11730 | -6/Factory | Incoming assault squad redirected 11744 | -6/Factory | Lost 7 parts (2p2n1u2w) 11885 | -6/Factory | Discovered new exit (range 7) 12128 | -6/Factory | Build established: Infiltrator-Mutant 12160 | -6/Factory | Identified exit to Garrison 12646 | -6/Factory | Entered another Factory area 12646 | -5/Factory | Evolved 2 slots: Utility x1, Weapon x1 12647 | -5/Factory | Identified exit to Extension 13355 | -5/Factory | Build established: Mutant 13655 | -5/Factory | Found Prototype Launcher 13655 | -5/Factory | Identified Tesla Bomb Launcher 13783 | -5/Factory | Entered Extension 13877 | -5/Extension | Build established: Skirmisher 14159 | -5/Extension | Rescued a captive Derelict 14177 | -5/Extension | System corruption reached 10% 14209 | -5/Extension | Rescued a captive Derelict 14215 | -5/Extension | Lost 4 parts (2n1u1w) 14341 | -5/Extension | Spotted B-75 Beast 14446 | -5/Extension | Lost 3 parts (3u) 14515 | -5/Extension | Lost 5 parts (2n1u2w) 14607 | -5/Extension | Destroyed B-75 Beast 14633 | -5/Extension | Spotted B-75 Beast 14723 | -5/Extension | Crushed by falling debris 14739 | -5/Extension | Crushed by falling debris 14742 | -5/Extension | Crushed by falling debris 14765 | -5/Extension | Crushed by falling debris 14765 | -5/Extension | System corruption reached 30% 14776 | -5/Extension | Crushed by falling debris 14780 | -5/Extension | Crushed by falling debris 14811 | -5/Extension | Lost 10 parts (2p2n3u3w) 14880 | -5/Extension | Rescued a captive Derelict 15022 | -5/Extension | Found Prototype Processor 15022 | -5/Extension | Identified Exp. Targeting Computer 15365 | -5/Extension | Rescued a captive Derelict 15366 | -5/Extension | Rescued a captive Derelict 15409 | -5/Extension | Discovered new exit (range 10) 15411 | -5/Extension | Discovered new exit (range 6) 15428 | -5/Extension | Entered Cetus 15428 | -5/Cetus | Accompanied by 6 allies 15459 | -5/Cetus | Spotted Cetus Guard 15459 | -5/Cetus | Spotted Cetus Guard 15461 | -5/Cetus | Spotted Cetus Guard 15461 | -5/Cetus | Spotted Cetus Guard 15480 | -5/Cetus | Destroyed Cetus Guard 15503 | -5/Cetus | Core integrity fell below 50% 15508 | -5/Cetus | Destroyed Cetus Guard 15565 | -5/Cetus | Discovered new exit (range 16) 15573 | -5/Cetus | Entered Factory 15573 | -4/Factory | Evolved 2 slots: Power x1, Utility x1 15583 | -4/Factory | Discovered new exit (range 11) 15589 | -4/Factory | Lost 18 parts (4p2n8u4w) 15630 | -4/Factory | Found Prototype Processor 15696 | -4/Factory | Identified Exp. Signal Interpreter 15761 | -4/Factory | Incoming investigation squad redirected 15806 | -4/Factory | Build established: Mutant 15944 | -4/Factory | Spotted B-86 Titan 15961 | -4/Factory | Lost 3 parts (1n2w) 15993 | -4/Factory | Entered Upper Caves 16149 | -4/Upper Caves | Spotted B-86 Titan 16151 | -4/Upper Caves | Core integrity fell below 50% 16185 | -4/Upper Caves | Learned Research emergency access door positions 16259 | -4/Upper Caves | Core integrity fell below 20% 16262 | -4/Upper Caves | Attracted the attention of an 0b10 outpost 16289 | -4/Upper Caves | Destroyed by P-70 Sage with High-powered Shock Rifle Last Messages --------------- 16154_ Slug penetrates Wall. 16158_ NQS4E PEHN=,3PCN&YP1 16185_ Acquired derelict log, extracted data. Data stored: Research emergency access points. 16197_ R5BJNA0XC7EHDI#VSQ:L0SL|<:E U>T%%UMI 16213_ Slammed into P-70 Sage. 16257_ Attempting to rewire L-61 Swordsman. 16257_ L-61 Swordsman is dormant, system inaccessible. 16258_ System corrupted: Energy discharge (-35). 16258_ G-67 Veteran springs to life. 16258_ S-27 Virus springs to life. 16258_ G-67 Veteran springs to life. 16259_ B-60 Warrior springs to life. 16259_ L-61 Swordsman springs to life. 16262_ Y-72 Warden: "DETECTED UNIDENTIFIED DERELICT." 16266_ Y-72 Warden: "REQUESTING BACKUP." 16281_ Slammed into S-27 Virus. 16285_ 1W91GK2 HP0KJ5ZPU4E=#>2KUCQ